bitfinex-derivatives/quotes_SOLF0:USTF0_20241206
["timestamp","ask_amount","ask_price","bid_price","bid_amount"]
[1733500875199,16.21772838,238.18,238.02,3.26]
[1733500875200,2.0972,238.14,238.02,3.26]
[1733500875405,16.21772838,238.18,238.01,2.1768]
[1733500875605,16.21772838,238.18,238.02,3.26]
[1733500876200,16.21772838,238.18,238.01,2.1768]
[1733500876407,16.21772838,238.18,238.02,3.26]
[1733500877000,2.097,238.16,238.02,3.26]
[1733500877207,16.21772838,238.18,238.02,3.26]
[1733500877505,2.097,238.17,238.02,3.26]
[1733500878007,2.097,238.17,238.01,2.1768]
[1733500878309,2.097,238.17,238.02,3.26]
[1733500878904,5.1912,238.2,238.04,16.21772838]
[1733500879308,5.1912,238.2,238.05,2.6242]
[1733500879504,7.2878,238.2,238.05,2.6242]
[1733500880110,5.1912,238.2,238.05,2.6242]
[1733500880406,2.0968,238.18,238.05,2.6242]
[1733500880610,5.1912,238.2,238.05,2.6242]
[1733500881309,2.0969,238.17,238.05,2.6242]
[1733500881503,2.0969,238.17,238.01,2.1768]
[1733500881504,16.21772838,238.18,238.06,3.26]
[1733500882006,18.31452838,238.18,238.06,3.26]
[1733500882212,2.0968,238.18,238.06,3.26]
[1733500882411,5.1912,238.2,238.06,3.26]
[1733500883107,2.0967,238.19,238.06,3.26]
[1733500883308,5.1912,238.2,238.04,16.21772838]
[1733500883510,2.0971,238.15,238.07,3.26]
[1733500884206,2.0971,238.15,238.02,2.6242]
[1733500884406,2.0971,238.15,238.03,3.26]
[1733500884606,16.21772838,238.19,238.04,3.26]
[1733500885213,2.0971,238.15,238.04,3.26]
[1733500885603,16.21772838,238.19,238.04,3.26]
[1733500885804,2.0969,238.17,238.04,3.26]
[1733500886413,0.63804219,238.16,238.04,3.26]
[1733500886817,2.0969,238.17,238.04,3.26]
[1733500887414,0.63804756,238.16,238.04,3.26]
[1733500887709,16.21772838,238.15,237.96,18.86482838]
[1733500888012,16.21772838,238.15,237.97,3.26]
[1733500888013,2.0974,238.11,237.97,3.26]
[1733500888410,2.0972,238.13,237.97,3.26]
[1733500888613,16.21772838,238.15,237.97,3.26]
[1733500888614,0.63819699,238.12,237.97,3.26]
[1733500889316,16.21772838,238.15,237.97,3.26]
[1733500889712,18.31482838,238.15,237.97,3.26]
[1733500890016,0.63813175,238.14,238.0,10.15785752]
[1733500890312,10.15785752,238.11,237.95,10.15785752]
[1733500890516,10.15785752,238.11,237.98,10.15785752]
[1733500890716,0.63812899,238.13,237.98,10.15785752]
[1733500891012,10.15785752,238.05,237.88,36.70357702]
[1733500891213,19.54245752,238.2,237.82,17.305875]
[1733500891214,2.099,237.93,237.82,17.305875]
[1733500891416,3.26,237.95,237.8,17.305875]
[1733500891615,3.26,237.95,237.81,10.15785752]
[1733500892118,3.26,237.95,237.8,19.53608659]
[1733500892317,19.53608659,238.0,237.8,19.53608659]
[1733500892614,2.0988,237.96,237.8,19.53608659]
[1733500892817,19.53608659,238.0,237.8,19.53608659]
[1733500893114,0.63864658,237.99,237.8,21.63869382]
[1733500893722,2.0985,237.99,237.8,21.63869382]
[1733500893913,0.63862719,237.98,237.8,21.63869382]
[1733500894114,0.63865879,237.97,237.8,21.63869382]
[1733500894410,0.63865879,237.97,237.8,5.34260723]
[1733500894611,0.63871092,237.96,237.8,5.34260723]
[1733500894813,2.73751092,237.96,237.8,5.34260723]
[1733500895014,2.0988,237.96,237.8,5.34260723]
[1733500895214,19.53608659,238.0,237.8,5.34260723]
[1733500895411,2.0986,237.98,237.8,5.34260723]
[1733500895717,19.53608659,238.0,237.8,5.34260723]
[1733500896019,2.0986,237.97,237.8,5.34260723]
[1733500896420,3.26,238.0,237.82,16.27608659]
[1733500896611,3.26,238.0,237.8,5.34260723]
[1733500896612,3.26,238.0,237.86,16.27608659]
[1733500896815,3.26,238.0,237.87,3.24]
[1733500897021,24.05608659,238.04,237.87,3.24]
[1733500897216,5.2001,238.04,237.9,16.27608659]
[1733500897616,3.24,238.1,237.9,16.27608659]
[1733500897617,0.63863758,237.99,237.9,16.27608659]
[1733500898921,0.63863758,237.99,237.88,4.8655]
[1733500899116,0.63863758,237.99,237.9,16.27608659]
[1733500899519,0.63863758,237.99,237.88,4.8655]
[1733500899824,0.63863758,237.99,237.89,2.10181176]
[1733500900319,5.4058,238.08,237.93,16.27608659]
[1733500900522,19.51608659,238.17,237.97,16.27608659]
[1733500900720,19.51608659,238.17,237.98,2.5712]
[1733500901323,2.097,238.16,237.98,2.5712]
[1733500901827,3.24,238.17,237.98,2.5712]
[1733500902623,16.27608659,238.15,237.98,2.5712]
[1733500903121,21.50688659,238.19,238.01,16.27608659]
[1733500903324,5.2308,238.19,238.02,3.24]
[1733500903720,5.2308,238.19,238.05,16.27608659]
[1733500903916,2.5077,238.19,238.05,16.27608659]
[1733500904420,1.15383,238.2,238.05,16.27608659]
[1733500904921,1.15383,238.2,238.09,16.27608659]
[1733500905123,1.15383,238.2,238.1,3.24]
[1733500910635,1.15383,238.2,238.06,3.24]
[1733500911022,2.5599,238.19,238.06,3.24]
[1733500911328,1.15383,238.2,238.06,19.51608659]
[1733500911921,1.15383,238.2,238.1,16.27608659]
[1733500912132,1.15383,238.2,238.14,16.27608659]
[1733500912328,3.24,238.33,238.18,16.27608659]
[1733500912626,2.7469,238.34,238.18,16.27608659]
[1733500914026,2.0955,238.33,238.18,16.27608659]
[1733500914230,2.7469,238.34,238.18,16.27608659]
[1733500914433,0.63262181,238.33,238.18,16.27608659]
[1733500915123,2.7469,238.34,238.19,3.24]
[1733500915926,2.7469,238.34,238.22,16.27608659]
[1733500916529,2.7469,238.34,238.19,3.24]
[1733500916935,0.63262231,238.33,238.14,16.27608659]
[1733500917133,0.63262231,238.33,238.11,6.9496]
[1733500917134,16.27608659,238.3,238.11,6.9496]
[1733500917335,0.63262231,238.29,238.11,10.1896]
[1733500917534,2.0961,238.27,238.11,10.1896]
[1733500917731,0.63284006,238.26,238.11,10.1896]
[1733500918032,2.0961,238.27,238.11,10.1896]
[1733500920729,2.7307,238.28,238.11,3.24]
[1733500921434,2.0961,238.26,238.11,3.24]
[1733500922139,3.24,238.25,238.05,3.24]
[1733500922340,3.87285545,238.25,238.06,16.27608659]
[1733500922537,0.63285545,238.24,238.1,16.27608659]
[1733500922938,3.24,238.25,238.1,16.27608659]
[1733500923737,2.0963,238.24,238.1,16.27608659]
[1733500924135,3.24,238.25,238.1,16.27608659]
[1733500926639,2.0963,238.24,238.1,16.27608659]
[1733500927033,3.24,238.25,238.09,16.27608659]
[1733500927844,0.63290919,238.24,238.05,16.27608659]
[1733500928235,2.5627,238.23,238.05,16.27608659]
[1733500928541,2.0968,238.18,238.03,3.24]
[1733500928846,2.0968,238.18,238.03,19.51608659]
[1733500929042,2.097,238.16,238.03,16.27608659]
[1733500929239,2.5627,238.23,238.03,19.51608659]
[1733500929540,2.5627,238.23,238.07,16.27608659]
[1733500929746,2.5627,238.23,238.11,16.27608659]
[1733500930439,0.63299067,238.22,238.11,16.27608659]
[1733500931045,4.6591,238.23,238.11,16.27608659]
[1733500932945,2.0965,238.22,238.11,16.27608659]
[1733500933649,2.0965,238.22,238.07,16.27608659]
[1733500933847,2.5627,238.23,238.07,19.51608659]
[1733500934048,2.5165,238.22,238.07,19.51608659]
[1733500934349,3.14948276,238.22,238.07,19.51608659]
[1733500934644,2.0967,238.19,238.07,19.51608659]
[1733500935349,2.0966,238.2,238.07,19.51608659]
[1733500935538,2.5165,238.22,238.07,19.51608659]
[1733500936150,2.0967,238.19,238.07,19.51608659]
[1733500936346,16.27608659,238.17,238.01,0.8265]
[1733500936846,0.63321532,238.16,238.01,17.10258659]
[1733500937247,2.0973,238.13,238.01,17.10258659]
[1733500937549,18.92748659,238.17,238.01,17.10258659]
[1733500937746,2.0974,238.12,238.01,17.10258659]
[1733500938446,2.0974,238.11,238.01,0.8265]
[1733500938941,2.0978,238.08,238.01,0.8265]
[1733500939145,3.24,238.1,238.01,0.8265]
[1733500939347,5.2107,238.09,238.01,0.8265]
[1733500940143,2.098,238.05,238.01,0.8265]
[1733500940447,21.48678659,238.09,238.01,0.8265]
[1733500940948,21.48678659,238.09,237.89,2.10181176]
[1733500942047,16.27608659,238.05,237.89,2.10181176]
[1733500942247,2.6598,238.04,237.89,2.10181176]
[1733500942450,2.0988,237.95,237.89,2.10181176]
[1733500942841,16.27608659,238.01,237.89,2.10181176]
[1733500943443,2.0992,237.91,237.81,19.51608659]
[1733500943850,3.24,237.94,237.81,19.51608659]
[1733500944054,2.0991,237.92,237.81,19.51608659]
[1733500944552,3.24,237.94,237.81,19.51608659]
[1733500944746,2.0992,237.91,237.81,19.51608659]
[1733500944949,3.24,237.94,237.81,19.51608659]
[1733500945450,3.24,237.99,237.85,16.27608659]
[1733500945650,5.8998,238.04,237.89,16.27608659]
[1733500946045,7.9979,238.04,237.91,0.42836]
[1733500946354,3.24,238.04,237.91,0.42836]
[1733500947250,3.24,238.04,237.93,16.27608659]
[1733500947452,8.4507,238.09,237.93,16.27608659]
[1733500948254,2.0979,238.06,237.93,16.27608659]
[1733500948849,8.4507,238.09,237.93,16.27608659]
[1733500949657,2.0977,238.08,237.93,16.27608659]
[1733500951756,10.5483,238.09,237.93,16.27608659]
[1733500953961,16.27608659,238.16,237.97,16.27608659]
[1733500954164,2.6131,238.21,238.05,16.27608659]
[1733500954361,2.6131,238.21,238.06,3.22]
[1733500954555,16.27608659,238.27,238.06,3.22]
[1733500954556,18.87428659,238.27,238.06,3.22]
[1733500954758,2.0963,238.24,238.06,3.22]
[1733500954959,21.48738659,238.27,238.09,16.27608659]
[1733500955156,5.2113,238.27,238.1,7.0163]
[1733500955360,2.5407,238.3,238.1,7.0163]
[1733500955361,2.5407,238.3,238.13,16.27608659]
[1733500955566,2.5407,238.3,238.14,3.22]
[1733500955765,2.7642,238.4,238.14,3.22]
[1733500955959,16.27608659,238.36,238.17,16.27608659]
[1733500956855,2.5407,238.39,238.18,3.22]
[1733500957059,5.7607,238.39,238.18,3.22]
[1733500957264,2.0951,238.38,238.18,3.22]
[1733500957460,2.5982,238.42,238.21,16.27608659]
[1733500957666,2.5982,238.42,238.26,16.27608659]
[1733500957965,16.27608659,238.48,238.27,3.22]
[1733500958166,2.0944,238.46,238.27,3.22]
[1733500958360,18.85218659,238.48,238.3,16.27608659]
[1733500958560,2.5761,238.48,238.3,16.27608659]
[1733500958866,18.85218659,238.48,238.28,2.6698]
[1733500959159,2.0945,238.44,238.29,3.22]
[1733500959361,18.85218659,238.48,238.3,16.27608659]
[1733500959861,2.0945,238.45,238.3,16.27608659]
[1733500960162,18.85218659,238.48,238.3,16.27608659]
[1733500960868,2.0944,238.46,238.3,16.27608659]
[1733500961066,18.85218659,238.48,238.3,16.27608659]
[1733500961268,2.0943,238.47,238.3,16.27608659]
[1733500961969,18.85218659,238.48,238.3,16.27608659]
[1733500962169,2.0943,238.46,238.3,16.27608659]
[1733500962665,2.0943,238.47,238.3,16.27608659]
[1733500963555,18.85218659,238.48,238.3,16.27608659]
[1733500964260,18.85218659,238.48,238.28,2.6698]
[1733500964466,18.85218659,238.48,238.29,3.22]
[1733500965064,43.64,238.8,238.41,16.27608659]
[1733500965264,16.27608659,238.64,238.45,16.27608659]
[1733500965462,2.6167,238.63,238.45,19.49608659]
[1733500966062,2.0931,238.61,238.45,19.49608659]
[1733500966467,0.6270724,238.62,238.49,16.27608659]
[1733500966662,2.0927,238.65,238.49,16.27608659]
[1733500966863,43.64,238.8,238.53,16.27608659]
[1733500966864,3.22,238.72,238.53,16.27608659]
[1733500967069,3.22,238.72,238.54,3.22]
[1733500967267,2.0924,238.69,238.54,3.22]
[1733500967468,3.22,238.72,238.54,3.22]
[1733500967967,16.27608659,238.69,238.52,3.22]
[1733500968670,2.0928,238.63,238.52,3.22]
[1733500969066,3.22,238.64,238.49,3.22]
[1733500969277,2.7185,238.63,238.48,3.22]
[1733500970072,7.8684,238.63,238.48,3.22]
[1733500970473,7.8684,238.63,238.46,6.7509]
[1733500970685,7.8684,238.63,238.45,16.27608659]
[1733500970869,16.27608659,238.61,238.43,3.22]
[1733500971069,7.8684,238.63,238.45,16.27608659]
[1733500971270,2.0932,238.59,238.45,16.27608659]
[1733500972666,9.9613,238.63,238.49,16.27608659]
[1733500972871,16.27608659,238.69,238.5,3.22]
[1733500973171,2.6085,238.68,238.5,3.22]
[1733500973471,2.0926,238.66,238.53,16.27608659]
[1733500973672,2.6085,238.68,238.53,16.27608659]
[1733500974475,2.0926,238.66,238.53,16.27608659]
[1733500974775,2.6085,238.68,238.53,16.27608659]
[1733500974971,2.0927,238.65,238.53,16.27608659]
[1733500976675,2.0928,238.64,238.53,16.27608659]
[1733500976876,2.6085,238.68,238.53,16.27608659]
[1733500977574,2.0927,238.65,238.53,16.27608659]
[1733500977778,5.0695,238.78,238.51,2.5733]
[1733500977779,3.22,238.76,238.57,16.27608659]
[1733500978074,3.22,238.76,238.57,19.49608659]
[1733500978281,2.6723,238.77,238.61,16.27608659]
[1733500978475,3.22,238.76,238.61,16.27608659]
[1733500978679,2.0921,238.71,238.61,16.27608659]
[1733500979276,3.22,238.76,238.61,16.27608659]
[1733500979478,2.0922,238.7,238.61,16.27608659]
[1733500979972,3.22,238.76,238.61,16.27608659]
[1733500979973,2.0924,238.68,238.61,16.27608659]
[1733500980372,3.22,238.76,238.61,16.27608659]
[1733500980578,2.0919,238.74,238.61,16.27608659]
[1733500980878,3.22,238.76,238.61,16.27608659]
[1733500981082,2.0921,238.71,238.61,16.27608659]
[1733500981278,3.22,238.76,238.61,16.27608659]
[1733500981879,2.0921,238.72,238.61,16.27608659]
[1733500982985,2.0922,238.71,238.61,16.27608659]
[1733500983186,3.22,238.76,238.61,16.27608659]
[1733500984184,2.092,238.72,238.61,16.27608659]
[1733500984981,2.0917,238.77,238.65,16.27608659]
[1733500985180,2.0917,238.77,238.65,19.47608659]
[1733500986085,2.0917,238.76,238.65,19.47608659]
[1733500986588,16.27608659,238.87,238.69,16.27608659]
[1733500986880,7.798,238.9,238.69,16.27608659]
[1733500987084,3.2,238.91,238.73,16.27608659]
[1733500987284,2.0907,238.87,238.77,16.27608659]
[1733500987888,2.0906,238.89,238.77,16.27608659]
[1733500988586,2.0906,238.88,238.77,16.27608659]
[1733500989084,2.0906,238.88,238.81,16.27608659]
[1733500989285,2.0905,238.9,238.81,16.27608659]
[1733500989480,3.2,238.95,238.81,16.27608659]
[1733500990383,10.9445,238.98,238.81,16.27608659]
[1733500990583,2.0903,238.92,238.81,16.27608659]
[1733500991283,10.9445,238.98,238.81,16.27608659]
[1733500991686,7.7445,238.98,238.81,16.27608659]
[1733500991982,16.27608659,239.07,238.85,16.27608659]
[1733500992190,16.27608659,239.07,238.89,16.27608659]
[1733500992191,5.9131,239.06,238.89,16.27608659]
[1733500992378,2.09,238.96,238.89,16.27608659]
[1733500993485,16.27608659,239.03,238.88,3.2]
[1733500993792,16.27608659,239.05,238.85,19.47608659]
[1733500995084,16.27608659,239.01,238.85,16.27608659]
[1733500995284,16.27608659,239.01,238.83,3.2]
[1733500995484,16.27608659,239.01,238.82,3.2]
[1733500996086,2.09,238.96,238.82,3.2]
[1733500996295,3.2,238.99,238.82,3.2]
[1733500996490,3.2,238.99,238.82,19.47608659]
[1733500996895,3.2,238.99,238.82,16.27608659]
[1733500997096,3.2,238.99,238.82,19.47608659]
[1733500998290,2.0906,238.89,238.82,19.47608659]
[1733500998695,16.27608659,238.97,238.78,16.27608659]
[1733500998890,2.0903,238.92,238.78,16.27608659]
[1733500999093,2.755,238.96,238.82,16.27608659]
[1733500999895,2.7747,238.95,238.82,16.27608659]
[1733501000301,2.0906,238.89,238.82,16.27608659]
[1733501000493,5.5064,238.95,238.82,16.27608659]
[1733501001397,5.5064,238.95,238.78,16.27608659]
[1733501001797,2.0907,238.88,238.78,16.27608659]
[1733501002099,5.5064,238.95,238.82,16.27608659]
[1733501002492,2.0903,238.92,238.82,16.27608659]
[1733501002689,5.5064,238.95,238.82,16.27608659]
[1733501002893,2.0903,238.92,238.82,16.27608659]
[1733501003099,5.5064,238.95,238.82,16.27608659]
[1733501003496,2.0903,238.92,238.82,16.27608659]
[1733501003693,3.2,238.98,238.83,3.2]
[1733501004197,7.8349,239.02,238.86,16.27608659]
[1733501004198,11.0349,239.02,238.86,16.27608659]
[1733501004700,7.8349,239.02,238.86,16.27608659]
[1733501005799,3.2,239.1,238.9,16.27608659]
[1733501006097,3.2,239.1,238.84,5.3222]
[1733501006098,3.2,239.1,238.94,16.27608659]
[1733501006500,2.5607,239.09,238.93,3.2]
[1733501007097,2.0895,239.02,238.93,3.2]
[1733501007498,2.0892,239.05,238.93,3.2]
[1733501007696,2.5607,239.09,238.93,3.2]
[1733501007899,2.5607,239.09,238.96,16.27608659]
[1733501008097,2.0891,239.06,238.96,16.27608659]
[1733501008896,2.0892,239.05,238.94,1.5242]
[1733501009101,16.27608659,239.13,238.94,17.80028659]
[1733501009602,2.0893,239.04,238.94,17.80028659]
[1733501009904,16.27608659,239.13,238.94,17.80028659]
[1733501010607,2.0892,239.05,238.94,1.5242]
[1733501010808,2.0892,239.05,238.95,16.27608659]
[1733501011003,16.27608659,239.13,238.95,16.27608659]
[1733501011305,16.27608659,239.13,238.96,3.2]
[1733501011306,2.0892,239.04,238.96,3.2]
[1733501011507,16.27608659,239.13,238.96,3.2]
[1733501011804,2.0892,239.05,238.96,3.2]
[1733501011998,5.2206,239.15,238.96,3.2]
[1733501012202,5.2206,239.15,239.0,16.27608659]
[1733501013501,2.089,239.08,239.0,16.27608659]
[1733501013702,5.2206,239.15,239.0,16.27608659]
[1733501013909,3.2,239.18,239.0,16.27608659]
[1733501014502,2.0885,239.13,239.04,16.27608659]
[1733501014702,3.2,239.18,239.04,16.27608659]
[1733501014902,3.2,239.18,239.03,3.2]
[1733501016408,3.2,239.18,239.04,10.07160989]
[1733501016609,3.2,239.18,238.96,5.279]
[1733501016610,10.07160989,239.17,238.99,10.07160989]
[1733501017208,3.2,239.18,238.96,5.279]
[1733501017209,10.07160989,239.14,238.96,5.279]
[1733501017406,10.07160989,239.14,238.98,10.07160989]
[1733501017910,3.2,239.13,238.98,10.07160989]
[1733501018111,3.2,239.13,238.97,16.12117713]
[1733501018706,3.2,239.13,238.96,5.279]
[1733501018908,3.2,239.13,239.02,16.12117713]
[1733501019806,16.12117713,239.21,239.02,16.12117713]
[1733501020009,0.62525996,239.2,239.06,16.12117713]
[1733501020207,2.0884,239.15,239.06,16.12117713]
[1733501020407,0.62525996,239.2,239.06,16.12117713]
[1733501021409,0.62525996,239.2,239.04,3.2]
[1733501021712,0.62525996,239.2,239.02,16.12117713]
[1733501021713,0.62529911,239.19,239.02,16.12117713]
[1733501021912,0.62525996,239.2,238.96,5.279]
[1733501021913,16.12117713,239.17,238.96,5.279]
[1733501022108,16.12117713,239.17,238.96,24.60017713]
[1733501022109,0.62534723,239.16,238.96,24.60017713]
[1733501022305,0.62534723,239.16,238.96,21.40017713]
[1733501022306,3.2,239.15,238.96,21.40017713]
[1733501022612,3.2,239.15,238.96,24.60017713]
[1733501023411,0.625398,239.14,238.96,21.40017713]
[1733501023712,2.0895,239.02,238.96,21.40017713]
[1733501023905,2.6289,239.13,238.96,21.40017713]
[1733501024302,0.62545972,239.12,238.93,2.60012]
[1733501024507,2.5637,239.11,238.93,2.60012]
[1733501024709,2.0891,239.06,238.93,2.60012]
[1733501024911,3.2,239.05,238.93,2.60012]
[1733501025114,3.2,239.04,238.93,2.60012]
[1733501025717,2.0895,239.01,238.93,2.60012]
[1733501025913,3.2,239.04,238.93,2.60012]
[1733501026417,2.0901,238.94,238.93,2.60012]
[1733501027108,2.0908,238.86,238.81,2.5651]
[1733501027313,5.3313,238.96,238.79,16.12117713]
[1733501027714,5.3313,238.96,238.75,4.108]
[1733501027913,0.62594532,238.95,238.75,20.22917713]
[1733501028121,5.3313,238.96,238.75,20.22917713]
[1733501028314,0.62594556,238.95,238.75,20.22917713]
[1733501028513,0.62594556,238.95,238.75,4.108]
[1733501028711,16.12117713,238.93,238.75,1.5147]
[1733501028913,2.0914,238.8,238.75,1.5147]
[1733501029114,3.2,238.86,238.69,2.5933]
[1733501029308,2.0918,238.75,238.64,16.12117713]
[1733501029506,2.0918,238.75,238.57,17.14129463]
[1733501029507,16.12117713,238.68,238.56,22.87437497]
[1733501029710,16.12117713,238.58,238.39,16.12117713]
[1733501029912,2.0939,238.52,238.37,6.6903]
[1733501030114,16.12117713,238.5,238.37,6.6903]
[1733501030412,16.12117713,238.46,238.37,6.6903]
[1733501030914,16.12117713,238.46,238.37,2.5823]
[1733501031113,16.12117713,238.42,238.26,5.2863]
[1733501031308,16.12117713,238.38,238.26,2.6905]
[1733501031506,16.12117713,238.38,238.18,3.2]
[1733501031714,3.2,238.41,238.13,16.12117713]
[1733501031715,2.0957,238.3,238.13,16.12117713]
[1733501031916,2.0957,238.3,238.14,3.2]
[1733501032109,3.2,238.33,238.1,2.6905]
[1733501032310,3.2,238.33,238.11,3.2]
[1733501032311,16.12117713,238.3,238.11,3.2]
[1733501032722,3.2,238.33,238.13,16.12117713]
[1733501033719,16.12117713,238.38,238.17,16.12117713]
[1733501033921,3.2,238.38,238.17,16.12117713]
[1733501034222,3.2,238.38,238.2,26.3629159]
[1733501034522,3.2,238.38,238.21,3.2]
[1733501035913,26.3629159,238.36,238.15,3.2]
[1733501036119,26.3629159,238.32,238.15,3.2]
[1733501036318,3.2,238.31,238.12,3.2]
[1733501036519,2.0958,238.29,238.12,3.2]
[1733501037222,5.2957,238.31,238.12,3.2]
[1733501037613,3.2,238.31,238.12,29.5629159]
[1733501037813,3.2,238.31,238.16,26.3629159]
[1733501038517,3.2,238.34,238.16,26.3629159]
[1733501039217,3.2,238.34,238.12,3.2]
[1733501039218,26.3629159,238.32,238.12,26.3629159]
[1733501039418,26.3629159,238.32,238.13,3.2]
[1733501041118,3.2,238.34,238.13,3.2]
[1733501041820,2.0958,238.29,238.13,3.2]
[1733501042015,26.3629159,238.32,238.13,3.2]
[1733501042219,2.43568,238.43,238.16,26.3629159]
[1733501042220,26.3629159,238.36,238.16,26.3629159]
[1733501042420,3.2,238.35,238.16,26.3629159]
[1733501042716,5.2953,238.35,238.16,26.3629159]
[1733501042913,3.2,238.35,238.16,26.3629159]
[1733501043321,3.2,238.35,238.2,26.3629159]
[1733501043522,3.2,238.35,238.21,3.2]
[1733501044318,5.2953,238.35,238.21,3.2]
[1733501044527,3.2,238.35,238.21,3.2]
[1733501046725,2.0954,238.34,238.21,3.2]
[1733501047127,3.2,238.35,238.21,3.2]
[1733501050039,2.43568,238.43,238.24,26.3629159]
[1733501050040,3.18,238.42,238.24,26.3629159]
[1733501050336,2.0947,238.42,238.25,8.0273]
[1733501050537,2.43568,238.43,238.25,8.0273]
[1733501050731,2.43568,238.43,238.28,26.3629159]
[1733501051035,2.43568,238.43,238.29,3.18]
[1733501051431,2.43568,238.43,238.32,26.3629159]
[1733501051627,1.1685,238.66,238.25,8.0273]
[1733501051628,26.3629159,238.51,238.25,8.0273]
[1733501051829,26.3629159,238.43,238.25,8.0273]
[1733501052027,26.3629159,238.43,238.26,3.18]
[1733501052327,3.18,238.44,238.26,3.18]
[1733501052328,26.3629159,238.39,238.26,3.18]
[1733501053135,26.3629159,238.43,238.26,3.18]
[1733501053334,26.3629159,238.56,238.28,26.3629159]
[1733501053335,26.3629159,238.47,238.28,26.3629159]
[1733501054237,16.21622396,238.45,238.29,3.18]
[1733501054438,2.0946,238.43,238.3,3.18]
[1733501054936,16.21622396,238.45,238.3,3.18]
[1733501055141,2.0946,238.43,238.3,3.18]
[1733501055742,2.0947,238.42,238.3,3.18]
[1733501055937,16.21622396,238.45,238.3,3.18]
[1733501056341,2.0947,238.42,238.3,3.18]
[1733501056541,16.21622396,238.45,238.3,3.18]
[1733501056844,16.21622396,238.49,238.3,3.18]
[1733501057939,2.0945,238.45,238.3,3.18]
[1733501058739,2.0945,238.44,238.3,3.18]
[1733501059042,1.1685,238.66,238.33,16.21622396]
[1733501059242,1.1685,238.66,238.3,3.18]
[1733501059243,16.21622396,238.59,238.37,16.21622396]
[1733501059440,16.21622396,238.59,238.38,5.7834]
[1733501059441,2.0935,238.56,238.38,5.7834]
[1733501059646,16.21622396,238.59,238.41,16.21622396]
[1733501059840,2.0934,238.57,238.41,16.21622396]
[1733501060445,5.2732,238.59,238.41,16.21622396]
[1733501060646,16.21622396,238.63,238.45,16.21622396]
[1733501060840,16.21622396,238.63,238.46,3.18]
[1733501061143,3.18,238.64,238.46,3.18]
[1733501061339,16.21622396,238.67,238.49,16.21622396]
[1733501061541,2.0925,238.67,238.5,2.5531]
[1733501063749,16.21622396,238.67,238.5,2.5531]
[1733501064143,2.0929,238.62,238.5,2.5531]
[1733501064447,3.18,238.61,238.5,2.5531]
[1733501064645,2.0933,238.59,238.5,2.5531]
[1733501064838,3.18,238.61,238.5,2.5531]
[1733501065245,2.0931,238.6,238.5,2.5531]
[1733501065639,3.18,238.61,238.5,2.5531]
[1733501067847,2.0934,238.57,238.5,2.5531]
[1733501068446,3.18,238.61,238.4,16.21622396]
[1733501068650,16.21622396,238.59,238.41,5.9308]
[1733501068849,2.0936,238.54,238.41,5.9308]
[1733501069149,16.21622396,238.59,238.41,5.9308]
[1733501070245,16.21622396,238.59,238.41,2.7508]
[1733501070452,16.21622396,238.55,238.39,5.455]
[1733501070753,16.21622396,238.51,238.39,2.7627]
[1733501070948,3.18,238.5,238.36,0.88081]
[1733501071141,16.21622396,238.47,238.36,0.88081]
[1733501072149,16.21622396,238.37,238.05,44.4709857]
[1733501072345,16.21622396,238.28,238.12,2.7114]
[1733501072552,16.21622396,238.32,238.12,2.7114]
[1733501072748,12.15108108,238.31,238.15,16.21622396]
[1733501073053,3.18,238.31,238.15,16.21622396]
[1733501073446,3.18,238.31,238.12,2.7114]
[1733501074146,2.0962,238.25,238.12,2.7114]
[1733501074456,3.18,238.24,238.12,2.7114]
[1733501074947,16.21622396,238.32,238.12,2.7114]
[1733501074948,2.0961,238.27,238.12,2.7114]
[1733501075150,3.18,238.26,238.15,16.21622396]
[1733501075355,3.18,238.26,238.12,2.7114]
[1733501075656,16.21622396,238.36,238.12,2.7114]